bitfinex/quotes_ETHUSD_20250314
["timestamp","ask_amount","ask_price","bid_price","bid_amount"]
[1741972715271,5.16725,1935.3,1935.1,1.345513]
[1741972715576,5.16706,1935.4,1935.1,1.345513]
[1741972715745,10.33418,1935.4,1935.1,1.345513]
[1741972715946,5.16716,1935.3,1935.1,0.7534]
[1741972716780,5.16703,1935.4,1935.1,0.7534]
[1741972717080,5.16717,1935.3,1935.1,0.7534]
[1741972717975,10.33455,1935.3,1935.1,0.7534]
[1741972718168,10.33455,1935.3,1934.9,12.2836345]
[1741972718367,10.33455,1935.3,1934.9,14.02884395]
[1741972718563,5.16717,1935.3,1934.9,19.19693395]
[1741972718764,10.33456,1935.3,1934.9,14.02884395]
[1741972719070,10.33522,1935.2,1934.9,7.83600945]
[1741972719272,5.16755,1935.2,1934.9,0.8318]
[1741972719574,5.16718,1935.3,1934.9,5.99986]
[1741972719781,5.16743,1935.2,1934.9,5.99986]
[1741972719979,5.21838863,1935.5,1935.1,5.16765]
[1741972720147,0.05162863,1935.6,1935.3,5.97984]
[1741972720352,0.05162863,1935.6,1935.3,6.79349484]
[1741972720554,10.33247,1935.7,1935.3,6.84516389]
[1741972720748,5.16639,1935.6,1935.3,1.62645484]
[1741972721077,5.16667,1935.5,1935.3,1.62645484]
[1741972721265,5.16667,1935.5,1935.3,0.8128]
[1741972721650,0.05162863,1935.4,1935.1,6.0638]
[1741972721881,5.16717,1935.3,1935.1,6.0638]
[1741972722078,10.33406,1935.4,1935.1,6.0638]
[1741972722281,5.16697,1935.4,1935.1,6.0638]
[1741972722460,5.16719,1935.3,1935.1,6.0638]
[1741972722659,5.16697,1935.4,1935.1,6.0638]
[1741972722860,5.21859863,1935.4,1935.1,6.0638]
[1741972723170,5.16697,1935.4,1935.1,6.0638]
[1741972723368,5.16736,1935.3,1935.1,0.47888352]
[1741972723770,5.21898863,1935.3,1935.1,0.47888352]
[1741972723975,5.16736,1935.3,1935.1,0.47888352]
[1741972724280,5.683617,1935.4,1935.1,0.47888352]
[1741972724281,5.16692,1935.4,1935.1,0.47888352]
[1741972724477,5.16609,1935.7,1935.2,0.792]
[1741972724661,5.21816863,1935.6,1935.2,5.95938]
[1741972724860,5.16673,1935.5,1935.2,0.792]
[1741972725277,5.21816863,1935.6,1935.2,5.9594]
[1741972725478,5.16664,1935.5,1935.2,0.792]
[1741972725794,5.16638,1935.6,1935.2,5.95932]
[1741972726083,5.16664,1935.5,1935.2,6.60314035]
[1741972726383,5.21755863,1935.8,1935.5,0.7751]
[1741972726585,5.1661,1935.7,1935.5,0.7751]
[1741972726755,5.21816863,1935.6,1935.3,0.7751]
[1741972726947,10.38474863,1935.6,1935.3,0.7751]
[1741972727151,10.33242,1935.7,1935.3,7.17446839]
[1741972727368,10.33238,1935.7,1935.3,7.17446839]
[1741972727584,5.1661,1935.7,1935.3,7.17446839]
[1741972727785,5.21747863,1935.8,1935.3,7.17439839]
[1741972728078,10.38346863,1935.8,1935.4,5.16669]
[1741972728283,10.38346863,1935.8,1935.3,7.17453839]
[1741972728284,5.16637,1935.6,1935.3,7.17453839]
[1741972728455,5.16677,1935.5,1935.3,2.00741839]
[1741972729183,5.16637,1935.6,1935.3,7.17454839]
[1741972730081,5.16637,1935.6,1935.4,0.71745484]
[1741972730382,0.761,1936.0,1935.4,0.71745484]
[1741972730554,5.16554,1936.0,1935.6,5.16635]
[1741972730755,5.21720863,1935.9,1935.5,5.98719]
[1741972730953,10.38295863,1935.9,1935.5,5.98709]
[1741972731153,5.1655,1936.0,1935.6,5.16623]
[1741972731374,0.05162863,1936.1,1935.7,0.7585]
[1741972731564,0.05162863,1936.1,1935.8,5.16573]
[1741972731565,5.16506,1936.1,1935.8,5.16573]
[1741972731766,10.38134863,1936.2,1935.8,5.16573]
[1741972731964,5.16515,1936.1,1935.7,11.18142]
[1741972732160,5.21703863,1936.0,1935.7,0.7585]
[1741972732361,0.05162863,1936.1,1935.7,7.116013]
[1741972732567,5.21646863,1936.2,1935.8,5.16562]
[1741972732880,10.38085863,1936.3,1936.0,0.7776]
[1741972733054,5.1648,1936.2,1936.0,0.7776]
[1741972733254,5.16502,1936.1,1935.8,0.7594]
[1741972733469,5.16502,1936.1,1935.8,1.9876833]
[1741972733979,5.21664863,1936.1,1935.8,1.9876833]
[1741972734189,5.16539,1936.0,1935.8,0.7594]
[1741972734421,5.16502,1936.1,1935.8,5.92521]
[1741972734685,8.16423,1936.4,1936.0,5.16508]
[1741972734856,5.16423,1936.4,1936.0,10.33021]
[1741972735052,5.93186,1936.6,1936.2,5.93064]
[1741972735257,5.93186,1936.6,1936.2,11.09521]
[1741972735258,5.16376,1936.6,1936.2,11.09521]
[1741972735567,0.05162863,1936.6,1936.2,0.766]
[1741972735761,5.21509863,1936.7,1936.4,5.164]
[1741972735964,5.21509863,1936.7,1936.3,5.16442]
[1741972735965,5.16347,1936.7,1936.3,5.16442]
[1741972736171,0.05162863,1936.7,1936.3,6.799445]
[1741972736478,11.14053,1936.8,1936.4,5.16409]
[1741972736867,5.21506863,1936.7,1936.3,6.799445]
[1741972737257,5.16416,1936.5,1936.2,0.766]
[1741972737454,0.05162863,1936.7,1936.3,5.16439]
[1741972737455,5.21515863,1936.7,1936.3,5.16439]
[1741972737786,5.16371,1936.6,1936.2,5.93049]
[1741972738204,5.97729,1936.8,1936.4,5.16415]
[1741972738407,6.02891863,1936.8,1936.4,5.16415]
[1741972738570,5.16291,1936.9,1936.5,6.54325138]
[1741972738776,5.21453863,1936.9,1936.5,11.655275]
[1741972739003,5.16291,1936.9,1936.6,5.16365]
[1741972739206,5.99092,1937.2,1936.7,5.16326]
[1741972739392,0.05162863,1937.1,1936.7,5.16326]
[1741972739593,8.21409863,1937.1,1936.8,5.16315]
[1741972739920,5.16267,1937.0,1936.7,1.032694]
[1741972740105,5.16288,1936.9,1936.7,1.032694]
[1741972740422,5.21450863,1936.9,1936.6,5.254]
[1741972740581,5.16315,1936.8,1936.6,5.254]
[1741972740783,10.32653,1936.8,1936.6,5.254]
[1741972740993,10.32653,1936.8,1936.3,15.22724781]
[1741972740994,10.32709,1936.7,1936.3,11.94966]
[1741972741217,5.21504863,1936.7,1936.3,11.94956]
[1741972741416,5.16373,1936.6,1936.3,11.94956]
[1741972741721,5.16318,1936.8,1936.4,5.16395]
[1741972741974,0.05162863,1936.7,1936.3,14.186434]
[1741972742126,5.16377,1936.6,1936.3,6.7852]
[1741972742599,5.16377,1936.6,1936.3,11.94966]
[1741972742803,5.16377,1936.6,1936.3,6.7852]
[1741972743006,5.16377,1936.6,1936.3,0.7952]
[1741972743209,5.21575863,1936.5,1936.1,5.9602]
[1741972743395,5.95803,1936.6,1936.2,5.16471]
[1741972743598,5.16342,1936.7,1936.2,5.21639267]
[1741972743825,5.21504863,1936.7,1936.2,5.21639267]
[1741972743984,10.32779,1936.6,1936.2,5.16458]
[1741972744184,5.16396,1936.5,1936.2,5.16458]
[1741972744417,5.16396,1936.5,1936.1,5.96017]
[1741972744618,10.37975863,1936.5,1936.1,7.70183059]
[1741972744817,5.16396,1936.5,1936.1,7.70173059]
[1741972745118,5.21510863,1936.7,1936.1,6.6096484]
[1741972745411,0.7942,1936.8,1936.3,5.1643]
[1741972745616,5.16326,1936.8,1936.4,5.94532]
[1741972745796,5.21488863,1936.8,1936.5,0.594532]
[1741972745997,5.21488863,1936.8,1936.4,5.94532]
[1741972746590,10.32704,1936.7,1936.4,0.7813]
[1741972746785,5.16344,1936.7,1936.4,0.7813]
[1741972746987,5.16378,1936.6,1936.2,5.16473]
[1741972747188,0.05162863,1936.5,1936.2,6.0291]
[1741972747517,5.16425,1936.4,1936.1,1.74166059]
[1741972748092,5.16425,1936.4,1936.1,6.90664059]
[1741972748314,5.16452,1936.3,1936.1,1.74166059]
[1741972748515,5.16452,1936.3,1936.0,12.23139585]
[1741972748692,5.16452,1936.3,1936.0,7.06628585]
[1741972749089,5.16452,1936.3,1936.0,0.7761]
[1741972749307,10.32919,1936.3,1936.0,0.7761]
[1741972749496,5.16452,1936.3,1936.0,0.7761]
[1741972749702,10.3292,1936.3,1936.0,0.7761]
[1741972750120,5.16441,1936.4,1936.0,11.10648]
[1741972750337,0.8067,1936.6,1936.4,5.16405]
[1741972750637,6.1,1937.0,1936.4,5.16405]
[1741972750792,5.21452863,1936.9,1936.5,5.16391]
[1741972751122,10.37753863,1936.9,1936.5,5.16391]
[1741972751316,5.16315,1936.8,1936.5,5.16391]
[1741972751524,5.16315,1936.8,1936.6,0.516391]
[1741972751710,0.7709,1937.1,1936.6,5.679931]
[1741972751711,5.1627,1937.0,1936.6,5.679931]
[1741972751909,10.32555,1937.0,1936.7,0.8093]
[1741972752225,5.16315,1936.8,1936.6,0.516391]
[1741972752804,5.16315,1936.8,1936.5,0.8093]
[1741972754025,5.16315,1936.8,1936.5,5.97322]
[1741972754913,5.16315,1936.8,1936.5,0.8093]
[1741972755097,5.16315,1936.8,1936.4,10.41606]
[1741972756039,5.16379,1936.6,1936.3,0.8272]
[1741972756245,5.92322,1936.7,1936.3,5.99157]
[1741972756536,11.08684,1936.7,1936.3,5.99157]
[1741972756737,5.92322,1936.7,1936.3,5.99157]
[1741972756934,11.13843863,1936.7,1936.3,5.99157]
[1741972757175,11.08681,1936.7,1936.3,7.73629312]
[1741972757542,5.16324,1936.8,1936.4,5.16409]
[1741972757769,10.32657,1936.8,1936.4,5.16409]
[1741972757967,5.1627,1937.0,1936.5,5.21558889]
[1741972758155,5.16297,1936.9,1936.5,5.16395]
[1741972758478,5.16297,1936.9,1936.5,6.196614]
[1741972759263,10.32649,1936.8,1936.4,5.16421]
[1741972759465,10.3277,1936.6,1936.3,0.8272]
[1741972759653,10.37932863,1936.6,1936.2,10.79893394]
[1741972759972,5.16427,1936.4,1936.1,14.09856418]
[1741972760166,5.93603,1936.3,1936.1,5.99]
[1741972760471,5.16489,1936.2,1935.9,6.0674]
[1741972761257,5.16489,1936.2,1935.9,11.2329]
[1741972761582,0.7713,1936.3,1935.9,11.23292]
[1741972762147,5.16449,1936.3,1936.0,5.16512]
[1741972762380,5.16449,1936.3,1935.9,16.39829]
[1741972762576,10.32863,1936.4,1936.0,5.21692802]
[1741972762780,5.21585863,1936.4,1936.0,5.16528]
[1741972762980,5.1646,1936.3,1935.9,13.01412405]
[1741972763280,10.3293,1936.3,1935.9,13.01412405]
[1741972763444,5.1646,1936.3,1935.9,13.01412405]
[1741972764984,5.1646,1936.3,1935.9,18.17952405]
[1741972765161,5.1646,1936.3,1936.0,6.98318241]
[1741972765783,5.1646,1936.3,1936.0,5.16523]
[1741972765982,5.1646,1936.3,1935.9,11.23278]
[1741972766183,5.1646,1936.3,1935.9,16.39811]
[1741972766484,5.1646,1936.3,1935.9,10.41533]
[1741972766846,0.7646,1936.2,1935.9,5.16533]
[1741972767052,0.7646,1936.2,1935.9,6.86495805]
[1741972767473,5.21676863,1936.1,1935.9,1.69962805]
[1741972767792,5.93051,1935.8,1935.4,5.1667]
[1741972768557,5.21796863,1935.7,1935.3,6.98176615]
[1741972768784,5.16641,1935.6,1935.3,6.98176615]
[1741972768983,5.16634,1935.7,1935.3,8.20479277]
[1741972769254,5.16661,1935.6,1935.2,5.64386832]
[1741972769465,5.16673,1935.5,1935.2,5.25]
[1741972769684,0.7646,1935.5,1935.0,1.02142771]
[1741972769890,0.7646,1935.5,1935.0,0.4786098]
[1741972769891,5.16769,1935.1,1935.0,0.4786098]
[1741972770265,5.21931863,1935.1,1935.0,0.4786098]
[1741972770592,5.98391863,1935.1,1935.0,0.4786098]
[1741972770884,5.16816,1935.0,1934.6,10.80286725]
[1741972771099,5.16816,1935.0,1934.6,12.47648198]
[1741972771309,5.21998863,1934.9,1934.6,6.92361473]
[1741972771455,5.21998863,1934.9,1934.6,5.25]
[1741972771856,5.16864,1934.8,1934.6,5.25]
[1741972772152,5.16822,1934.9,1934.6,5.25]
[1741972772581,0.05162863,1934.8,1934.6,5.25]
[1741972772786,5.16822,1934.9,1934.5,5.16914]
[1741972773091,5.16865,1934.8,1934.4,13.09582821]
[1741972773261,5.16865,1934.8,1934.4,20.09984103]
[1741972773466,5.16865,1934.8,1934.5,5.16927]
[1741972773779,0.05162863,1934.7,1934.4,7.28075334]
[1741972773975,5.22048863,1934.7,1934.4,6.8930198]
[1741972774177,0.80762863,1934.7,1934.4,0.1151198]
[1741972774377,0.756,1934.7,1934.4,0.1151198]
[1741972774557,5.22074863,1934.6,1934.4,0.1151198]
[1741972774757,5.16929,1934.5,1934.4,0.1151198]
[1741972774983,5.22074863,1934.6,1934.4,0.1151198]
[1741972774984,5.16912,1934.6,1934.4,0.1151198]
[1741972775288,5.22091863,1934.5,1934.4,0.1151198]
[1741972775452,0.05162863,1934.5,1934.4,0.1151198]
[1741972775658,0.80762863,1934.7,1934.4,0.1151198]
[1741972776061,5.97649863,1934.7,1934.4,0.1151198]
[1741972776277,0.80762863,1934.7,1934.4,5.2846498]
[1741972776680,0.80762863,1934.7,1934.4,0.1151198]
[1741972776874,0.05162863,1934.7,1934.4,0.64360778]
[1741972777078,5.16859,1934.8,1934.4,5.2845598]
[1741972778105,5.1692,1934.6,1934.4,0.1151198]
[1741972778464,5.22076863,1934.6,1934.4,0.1151198]
[1741972778700,10.38992863,1934.6,1934.4,0.1151198]
[1741972779098,5.16929,1934.5,1934.4,0.1151198]
[1741972779311,6.20829586,1934.5,1934.4,0.1151198]
[1741972779786,6.25992449,1934.5,1934.4,0.1151198]
[1741972780194,7.05612449,1934.5,1934.4,0.1151198]
[1741972780589,10.05612449,1934.5,1934.4,0.1151198]
[1741972780984,10.00449586,1934.5,1934.4,0.1151198]
[1741972781386,0.84782863,1934.5,1934.4,0.1151198]
[1741972781586,5.16903,1934.6,1934.4,0.1151198]
[1741972781795,0.7962,1934.7,1934.4,0.1151198]
[1741972781975,0.84782863,1934.7,1934.4,5.2845798]
[1741972782171,3.0,1934.8,1934.4,5.2845798]
[1741972782401,3.05162863,1934.8,1934.5,5.16919]
[1741972782705,0.7976,1934.9,1934.7,5.16854]
[1741972783002,5.16799,1935.0,1934.6,5.92341]
[1741972783204,0.775,1935.1,1934.7,5.16874]
[1741972783410,5.94273,1935.1,1934.7,5.16853]
[1741972783573,0.05162863,1935.0,1934.7,10.929483]
[1741972783781,0.05162863,1935.0,1934.7,5.760833]
[1741972783992,5.21967863,1935.0,1934.7,0.592303]
[1741972784173,5.21967863,1935.0,1934.6,5.16895]
[1741972784803,0.05162863,1935.0,1934.6,5.16883]
[1741972785002,5.99442863,1935.1,1934.7,5.16866]
[1741972785494,0.82662863,1935.1,1934.8,5.16847]
[1741972785697,0.7899,1935.3,1934.8,5.99484228]
[1741972785888,0.05162863,1935.2,1934.9,5.16809]
[1741972786391,3.84152863,1935.3,1934.8,1.808513]
[1741972786590,0.05162863,1935.4,1935.1,5.16759]
[1741972786914,8.21861863,1935.4,1935.0,5.16782]
[1741972787073,5.21861863,1935.4,1935.1,5.16768]
[1741972787279,0.8119,1935.5,1935.2,5.16726]
[1741972787490,0.86352863,1935.5,1935.2,5.16726]
[1741972787689,6.03019863,1935.5,1935.1,6.20123]
[1741972787890,0.86352863,1935.5,1935.2,5.1673]
[1741972788411,6.03014863,1935.5,1935.1,6.20116]
[1741972788810,0.86352863,1935.5,1935.2,5.16722]
[1741972789104,5.93724,1935.8,1935.4,5.1668]
[1741972789318,3.7712,1935.8,1935.5,5.16658]
[1741972789489,5.98865863,1935.8,1935.5,5.16658]
[1741972789682,0.82282863,1935.8,1935.5,5.1665]
[1741972789881,0.05162863,1935.8,1935.6,5.16633]
[1741972790221,5.97046,1936.3,1935.8,5.16565]
[1741972790509,0.05162863,1936.2,1935.9,5.16551]
[1741972790678,11.13506,1936.3,1935.9,5.16551]
[1741972790878,5.16481,1936.2,1935.9,5.16551]
[1741972791079,5.21643863,1936.2,1935.8,5.16577]
[1741972791391,10.38139863,1936.2,1935.8,6.72413]
[1741972791719,10.38139863,1936.2,1935.9,5.93485]
[1741972791720,0.05162863,1936.2,1935.9,5.93485]
[1741972792033,5.95968,1936.5,1936.1,5.16481]
[1741972792186,0.84712863,1936.5,1936.2,5.16451]
[1741972792380,0.05162863,1936.6,1936.2,5.680961]
[1741972792606,0.05162863,1936.6,1936.3,5.16439]
[1741972792907,5.16345,1936.7,1936.3,5.16439]
[1741972793221,5.21508863,1936.7,1936.4,5.16417]
[1741972793579,5.21508863,1936.7,1936.3,5.16444]
[1741972793786,5.16373,1936.6,1936.3,1.6096411]
[1741972794589,5.21558863,1936.5,1936.1,5.165]
[1741972794887,5.21558863,1936.5,1935.9,11.92492]
[1741972794888,5.16461,1936.3,1935.9,11.92492]
[1741972795084,5.21623863,1936.3,1935.9,11.92492]
[1741972795294,10.38089863,1936.3,1935.9,11.15542]
[1741972795877,5.16478,1936.2,1935.9,11.15542]
[1741972796098,5.16478,1936.2,1935.8,11.97413]
[1741972796493,5.21623863,1936.3,1935.8,11.97416]
[1741972796690,5.21622863,1936.3,1935.9,5.16538]
[1741972797089,5.16479,1936.2,1935.8,11.97416]
[1741972797296,10.32976,1936.2,1935.8,11.97416]
[1741972797486,5.16479,1936.2,1935.8,11.97416]
[1741972797685,5.21611863,1936.3,1935.9,5.16543]
[1741972797880,5.1648,1936.2,1935.9,5.16543]
[1741972798086,5.1648,1936.2,1935.9,5.16552]
[1741972798318,5.21624863,1936.3,1935.9,5.16552]
[1741972798518,5.21624863,1936.3,1935.9,5.16538]
[1741972798724,5.92534,1936.4,1936.0,5.16514]
[1741972798909,5.92534,1936.4,1936.1,5.16489]
[1741972799108,0.05162863,1936.3,1935.9,6.879435]
[1741972799313,5.21622863,1936.3,1935.9,1.713955]
[1741972799513,5.21622863,1936.3,1935.9,5.16555]
[1741972800244,5.16516,1936.1,1935.7,6.32243704]
[1741972800399,5.98373863,1936.0,1935.5,5.96809]
[1741972800714,5.16565,1935.9,1935.5,5.16639]
[1741972800918,5.16621,1935.7,1935.4,5.248]
[1741972801131,0.05162863,1935.7,1935.4,5.16673]
[1741972801299,0.05162863,1935.7,1935.4,6.200103]
[1741972801495,0.7666,1936.0,1935.4,1.033373]
[1741972801729,5.21736863,1935.9,1935.4,5.16668]
[1741972802000,5.21736863,1935.9,1935.4,10.33337]
[1741972802320,5.21736863,1935.9,1935.5,10.33289]
[1741972802628,0.7666,1936.0,1935.7,5.16598]
[1741972802832,11.14915863,1936.0,1935.6,5.16635]
[1741972803036,5.93203,1936.0,1935.6,6.282254]
[1741972803209,0.7666,1936.0,1935.8,5.16571]
[1741972803532,5.16563,1935.9,1935.6,1.116054]
[1741972803722,0.05162863,1935.8,1935.5,11.15653]
[1741972803917,5.16569,1935.9,1935.6,5.16625]
[1741972804118,5.21751863,1935.8,1935.5,5.99]
[1741972805242,5.16613,1935.7,1935.5,5.99]
[1741972805736,5.98913,1935.7,1935.5,5.99]
[1741972805921,5.21797863,1935.6,1935.5,5.99]
[1741972806126,5.21797863,1935.6,1935.3,5.16698]
[1741972806127,0.05162863,1935.6,1935.3,5.16698]
[1741972806321,0.8229,1935.7,1935.4,5.16675]
[1741972806636,0.05162863,1935.6,1935.4,5.16672]
[1741972807135,0.87452863,1935.7,1935.4,5.16672]
[1741972807440,0.8229,1936.0,1935.8,5.16577]
[1741972807813,5.1649,1936.2,1935.9,5.16547]
[1741972808132,0.05162863,1936.1,1935.8,5.16572]
[1741972808437,5.1649,1936.2,1935.8,5.16567]
[1741972808631,10.32985,1936.2,1935.8,5.16567]
[1741972808801,5.21671863,1936.1,1935.8,6.20400953]
[1741972809556,5.21671863,1936.1,1935.8,1.03833953]
[1741972809917,5.21671863,1936.1,1935.8,6.20405953]
[1741972809918,0.05162863,1936.1,1935.8,6.20405953]
[1741972810639,5.21678863,1936.1,1935.8,1.03833953]
[1741972811137,0.05162863,1936.1,1935.8,5.16573]
[1741972811334,0.05162863,1936.1,1935.8,5.16569]
[1741972811534,10.38148863,1936.2,1935.8,5.16569]
[1741972811835,5.16502,1936.1,1935.7,5.166]
[1741972812005,5.16502,1936.1,1935.7,10.33195]
[1741972812206,5.16502,1936.1,1935.8,1.033195]
[1741972812406,10.3303,1936.1,1935.7,5.16595]
[1741972812634,0.05162863,1936.1,1935.9,0.8114]
[1741972812939,5.21677863,1936.1,1935.7,11.14328]
[1741972814742,0.05162863,1936.1,1935.8,5.16574]
[1741972815136,5.21668863,1936.1,1935.8,5.16574]
[1741972815540,10.38191863,1936.1,1935.7,5.97748]
[1741972815739,5.21668863,1936.1,1935.7,12.82056721]
[1741972816047,0.05162863,1936.1,1935.7,2.48850721]
[1741972816248,5.21683863,1936.1,1935.7,0.8114]
[1741972816543,5.21677863,1936.1,1935.7,11.14334]
[1741972816845,5.21677863,1936.1,1935.7,10.33186]
[1741972817073,5.21677863,1936.1,1935.7,5.16592]
[1741972817247,5.21677863,1936.1,1935.7,10.33187]
[1741972817416,5.21677863,1936.1,1935.7,12.00924121]
[1741972817615,5.21677863,1936.1,1935.7,6.84329121]
[1741972818151,5.21677863,1936.1,1935.7,12.00919121]
[1741972818318,0.05162863,1936.1,1935.8,5.16577]
[1741972818520,0.8239,1936.2,1935.7,1.67737121]
[1741972818741,5.21622863,1936.3,1935.9,10.33078]
[1741972818943,5.21622863,1936.3,1935.9,10.33069]
[1741972819119,5.21622863,1936.3,1935.9,5.16534]
[1741972819454,5.21622863,1936.3,1935.9,10.33073]
[1741972819623,5.1646,1936.3,1935.9,5.16534]
[1741972819815,5.1646,1936.3,1935.9,5.681874]
[1741972820021,5.21622863,1936.3,1935.9,5.681874]
[1741972820754,5.21622863,1936.3,1935.9,5.682024]
[1741972821254,5.21622863,1936.3,1935.9,10.847404]
[1741972821757,5.21622863,1936.3,1935.9,5.16538]
[1741972822054,5.16486,1936.2,1935.9,5.16538]
[1741972822949,5.21675863,1936.1,1935.7,5.64460873]
[1741972823252,5.21675863,1936.1,1935.7,16.05654873]
[1741972823551,5.98225863,1936.1,1935.7,10.81054873]
[1741972824330,5.98225863,1936.1,1935.7,12.64142983]
[1741972824572,11.14747863,1936.1,1935.7,5.64460873]
[1741972824756,5.93063,1936.1,1935.7,10.81053873]
[1741972824926,5.98225863,1936.1,1935.7,10.81053873]
[1741972825255,11.14743863,1936.1,1935.7,5.1659]
[1741972825458,11.09581,1936.1,1935.7,5.1659]
[1741972825659,0.05162863,1936.0,1935.7,5.1659]
[1741972825862,0.05162863,1936.0,1935.7,12.03344123]
[1741972826858,0.7655,1936.1,1935.7,1.70159123]
[1741972827056,0.7655,1936.1,1935.8,5.16564]
[1741972827223,5.93054,1936.1,1935.8,10.33134]
[1741972827422,0.7655,1936.1,1935.8,5.16564]
[1741972827638,5.98574,1936.3,1935.8,1.20332712]
[1741972827959,5.21651863,1936.2,1935.9,5.16551]
[1741972828158,0.05162863,1936.2,1935.8,5.16582]
[1741972828366,0.8212,1936.3,1936.1,5.16502]
[1741972828529,0.8212,1936.3,1936.0,10.33042]
[1741972828855,0.8212,1936.3,1936.0,5.16515]
[1741972829263,0.87282863,1936.3,1936.0,5.16515]
[1741972829427,0.87282863,1936.3,1936.0,6.198216]
[1741972829855,0.8212,1936.3,1936.1,5.1648]
[1741972830264,0.8212,1936.3,1936.1,10.32965]
[1741972830664,5.16372,1936.6,1936.1,0.829]
[1741972830665,0.7969,1936.6,1936.1,0.829]
[1741972830852,0.7969,1936.6,1936.2,5.16475]
[1741972831054,5.96015,1936.8,1936.4,10.32824]
[1741972831227,6.01177863,1936.8,1936.4,10.32824]
[1741972831639,5.16368,1936.7,1936.3,5.16443]
[1741972831835,5.16367,1936.7,1936.3,10.32879]
[1741972832168,0.7969,1936.8,1936.2,9.83077595]
[1741972832364,6.01178863,1936.8,1936.4,5.16398]
[1741972832755,11.17512863,1936.8,1936.4,5.16398]
[1741972832955,11.1235,1936.8,1936.4,5.16398]
[1741972833155,0.05162863,1936.7,1936.4,5.16398]
[1741972833374,0.7969,1936.8,1936.2,6.24304053]
[1741972833541,0.84852863,1936.8,1936.5,5.16386]
[1741972833731,6.01167863,1936.8,1936.5,5.16386]
[1741972834149,6.01167863,1936.8,1936.4,5.16413]
[1741972834348,6.01167863,1936.8,1936.4,10.32819]
[1741972834747,0.84852863,1936.8,1936.5,10.32771]
[1741972835067,0.84852863,1936.8,1936.6,5.16365]
[1741972835249,0.7969,1936.8,1936.6,5.16365]
[1741972835434,5.16266,1937.0,1936.6,5.16356]
[1741972835637,0.85612863,1937.0,1936.8,5.16306]
[1741972835840,0.05162863,1937.1,1937.0,5.16262]
[1741972836041,0.8045,1937.4,1936.9,0.05162632]
[1741972836272,0.05162863,1937.3,1937.1,5.16226]
[1741972836469,5.21353863,1937.3,1936.9,5.16272]
[1741972836670,5.21353863,1937.3,1936.9,10.32543]
[1741972836839,10.37553863,1937.3,1936.9,5.16271]
[1741972837039,5.21353863,1937.3,1936.9,5.16271]
[1741972837670,5.21353863,1937.3,1936.8,5.98122]
[1741972837671,5.16219,1937.2,1936.8,5.98122]
[1741972837844,6.00741863,1937.1,1936.7,11.15334]
[1741972838048,5.16264,1937.0,1936.6,17.1622965]
[1741972838256,5.16264,1937.0,1936.6,16.13377832]
[1741972838581,5.95579,1937.1,1936.8,5.163]
[1741972838582,0.7934,1937.1,1936.8,5.163]
[1741972839146,0.7934,1937.1,1936.8,5.16296]
[1741972839342,0.05162863,1937.2,1936.8,5.679256]
[1741972839545,0.05162863,1937.2,1936.9,5.16273]
[1741972839764,5.95523,1937.3,1936.9,0.7906]
[1741972839765,0.84502863,1937.3,1936.9,0.7906]
[1741972840041,0.7934,1937.3,1937.0,5.16253]
[1741972840655,0.84502863,1937.3,1937.0,5.16253]
[1741972840856,0.05162863,1937.4,1937.1,5.16211]
[1741972841185,6.01893863,1937.5,1937.1,5.16211]
[1741972841858,11.18041863,1937.5,1937.1,5.16211]
[1741972842063,5.96731,1937.5,1937.1,5.16211]
[1741972842280,6.01893863,1937.5,1937.1,5.16211]
[1741972842449,11.18042863,1937.5,1937.1,5.16211]
[1741972842650,11.1288,1937.5,1937.1,5.16211]
[1741972842949,0.806,1937.5,1937.2,5.16195]
[1741972843183,3.806,1937.5,1937.3,5.16179]
[1741972843682,0.806,1937.5,1937.2,5.16202]
[1741972844377,3.806,1937.5,1937.2,5.16193]
[1741972844567,3.0,1937.5,1937.2,10.32388]
[1741972844949,3.0,1937.5,1937.3,5.16178]
[1741972845774,8.16129,1937.5,1937.2,5.16193]
[1741972846292,3.0,1937.5,1937.2,5.16193]
[1741972847152,3.0,1937.5,1937.2,10.3239]
[1741972847566,3.0,1937.5,1937.2,5.16193]
[1741972848684,3.0,1937.5,1937.3,5.16181]
[1741972848980,3.0,1937.5,1937.2,5.11193]
[1741972849583,3.0,1937.5,1937.2,10.27387]
[1741972849795,3.0,1937.5,1937.2,5.11193]
[1741972850757,3.0,1937.5,1937.2,10.27387]
[1741972850971,3.0,1937.5,1937.2,10.27385]
[1741972851280,11.12007,1937.7,1937.3,5.21332477]
[1741972851478,11.12007,1937.7,1937.3,5.16171]
[1741972852190,11.12007,1937.7,1937.3,5.2133221]
[1741972852600,11.12007,1937.7,1937.3,10.3750321]
[1741972852801,11.12,1937.7,1937.3,10.32335]
[1741972852999,5.16105,1937.6,1937.3,5.16164]
[1741972853172,5.21267863,1937.6,1937.3,5.16164]
[1741972853374,10.37386863,1937.6,1937.2,11.71280864]
[1741972853771,5.16174,1937.4,1937.1,1.52812688]
[1741972853974,10.32356,1937.4,1937.1,6.76712688]
[1741972854265,5.16184,1937.3,1937.1,6.76712688]
[1741972854489,5.16184,1937.3,1937.1,5.62349698]
[1741972854689,5.16184,1937.3,1937.0,6.7884]
[1741972854880,5.16263,1937.0,1936.8,5.239]
[1741972855404,5.97974,1937.1,1936.8,5.239]
[1741972855577,0.05162863,1937.1,1936.8,5.239]
[1741972855779,0.86512863,1937.3,1936.9,0.7538]
[1741972855979,0.8135,1937.5,1937.0,5.1625]
[1741972856201,0.8135,1937.5,1936.9,0.7538]
[1741972856202,5.16218,1937.2,1936.9,5.91668]
[1741972856513,10.37613863,1937.2,1936.8,10.9259]
[1741972856673,10.32509,1937.1,1936.8,5.239]
[1741972857097,5.1625,1937.1,1936.8,10.40215]
[1741972857286,5.9469,1937.2,1936.8,5.16315]
[1741972857486,5.99852863,1937.2,1936.8,10.32613]
[1741972857675,0.83642863,1937.2,1936.7,6.0469]
[1741972857875,0.7848,1937.2,1936.9,5.16268]